bitfinex/quotes_SOLUSD_20260217
["timestamp","ask_amount","ask_price","bid_price","bid_amount"]
[1771362900849,0.47801148,85.469,85.444,11.70357193]
[1771362901043,0.47801148,85.459,85.44,11.70409808]
[1771362901248,0.47801148,85.449,85.43,16.6]
[1771362901546,0.47801148,85.449,85.431,11.70535285]
[1771362901754,0.47801148,85.449,85.431,12.22117466]
[1771362901929,0.47801148,85.459,85.432,0.51582181]
[1771362902131,2.84806449,85.48,85.451,0.51582181]
[1771362902537,0.47801148,85.495,85.461,0.51582181]
[1771362902733,0.47801148,85.479,85.451,0.51582181]
[1771362903029,0.47801148,85.479,85.454,0.51582181]
[1771362904558,0.47801148,85.479,85.455,11.70206541]
[1771362904742,0.47801148,85.479,85.456,0.51582181]
[1771362906449,0.47801148,85.489,85.461,0.51582181]
[1771362906666,0.47801148,85.489,85.463,0.51582181]
[1771362907360,0.47801148,85.498,85.471,0.51582181]
[1771362909254,0.47801148,85.498,85.473,0.51582181]
[1771362911035,0.47801148,85.489,85.463,16.64]
[1771362911340,0.47801148,85.489,85.457,11.70179154]
[1771362911543,0.47801148,85.489,85.457,12.21761335]
[1771362913737,0.47801148,85.479,85.451,11.70261319]
[1771362914140,0.47801148,85.469,85.437,17.15582181]
[1771362914338,0.47801148,85.469,85.441,11.70387739]
[1771362915455,0.48146757,85.459,85.423,0.50247972]
[1771362915857,0.48146757,85.459,85.424,11.70631204]
[1771362916049,0.48146757,85.449,85.424,11.70631204]
[1771362916551,0.48146757,85.449,85.43,2.37005301]
[1771362916752,0.48146757,85.449,85.431,0.50247972]
[1771362917436,0.48146757,85.456,85.431,0.50247972]
[1771362918057,0.48146757,85.456,85.432,11.70521584]
[1771362918742,0.48146757,85.439,85.417,11.70722975]
[1771362919457,2.3709675,85.43,85.389,16.41649695]
[1771362919659,2.3709675,85.4,85.378,0.51901201]
[1771362920758,2.3709675,85.39,85.374,11.71304732]
[1771362921056,15.32,85.431,85.376,0.51901201]
[1771362921265,2.3709675,85.42,85.381,0.51901201]
[1771362922244,2.3709675,85.43,85.391,0.51901201]
[1771362923964,7.06226105,85.43,85.391,0.51901201]
[1771362924461,11.70562689,85.429,85.393,0.51901201]
[1771362925672,7.06226105,85.42,85.393,0.51901201]
[1771362925852,7.06226105,85.41,85.384,16.66]
[1771362926164,7.06226105,85.4,85.384,16.66]
[1771362926542,7.06226105,85.4,85.384,28.37177826]
[1771362927381,7.06226105,85.4,85.37,7.26226105]
[1771362927666,7.06226105,85.39,85.37,0.2]
[1771362928356,7.06226105,85.4,85.372,0.51901201]
[1771362928786,40.97161251,85.425,85.381,0.51901201]
[1771362928787,7.06226105,85.41,85.381,0.51901201]
[1771362929071,7.06226105,85.4,85.381,0.51901201]
[1771362929278,7.06226105,85.39,85.373,11.71330514]
[1771362930180,7.06226105,85.39,85.37,0.2]
[1771362930562,7.06226105,85.39,85.371,11.71357955]
[1771362930878,7.06226105,85.39,85.37,0.2]
[1771362931180,7.06226105,85.39,85.37,11.9136778]
[1771362932281,7.06226105,85.39,85.37,0.2]
[1771362940886,11.71111033,85.389,85.37,0.2]
[1771362941687,7.06226105,85.38,85.36,0.2]
[1771362941991,40.98888615,85.389,85.347,0.51901201]
[1771362941992,7.06226105,85.37,85.348,1.3]
[1771362942284,7.06226105,85.37,85.349,1.3]
[1771362942791,7.06226105,85.37,85.35,12.23547363]
[1771362943871,2.37588564,85.37,85.351,0.51901201]
[1771362944584,2.37588564,85.37,85.343,0.51901201]
[1771362944887,14.08971341,85.37,85.345,0.51901201]
[1771362945985,11.71249613,85.379,85.345,0.51901201]
[1771362946970,11.71249613,85.379,85.347,0.51901201]
[1771362947172,11.71176888,85.385,85.351,0.51901201]
[1771362947891,2.37588564,85.4,85.361,0.51901201]
[1771362948088,2.37588564,85.4,85.371,0.51901201]
[1771362948479,2.37588564,85.39,85.371,0.51901201]
[1771362949186,11.7098843,85.398,85.372,11.71344234]
[1771362949490,11.7098843,85.398,85.373,0.51901201]
[1771362950576,2.37588564,85.4,85.373,0.51901201]
[1771362950889,2.37588564,85.42,85.391,0.51901201]
[1771362951106,2.37588564,85.43,85.391,0.51901201]
[1771362951275,2.37588564,85.43,85.38,2.37588564]
[1771362951276,2.37588564,85.44,85.411,0.51901201]
[1771362952386,40.95339503,85.463,85.421,0.51901201]
[1771362952387,2.37588564,85.45,85.421,0.51901201]
[1771362952586,40.95339503,85.463,85.421,0.51901201]
[1771362952891,11.70097001,85.463,85.431,0.51901201]
[1771362953082,2.37588564,85.47,85.431,0.51901201]
[1771362953083,11.70043762,85.467,85.431,0.51901201]
[1771362953288,2.37588564,85.48,85.443,0.51901201]
[1771362953489,2.37588564,85.47,85.443,0.51901201]
[1771362953793,46.75857746,85.546,85.46,2.37588564]
[1771362953983,2.37588564,85.5,85.471,0.51901201]
[1771362954190,11.69604322,85.499,85.471,0.51901201]
[1771362954495,2.37588564,85.5,85.47,0.51901201]
[1771362954670,2.37588564,85.49,85.461,0.51901201]
[1771362955379,2.37588564,85.5,85.471,0.51901201]
[1771362955897,7.04977231,85.5,85.471,0.51901201]
[1771362956096,7.04977231,85.49,85.458,0.51901201]
[1771362956695,7.04977231,85.48,85.458,0.51901201]
[1771362957082,7.04977231,85.47,85.455,16.76]
[1771362957286,7.04977231,85.48,85.45,0.51901201]
[1771362957686,7.04977231,85.47,85.45,0.51901201]
[1771362957896,7.04977231,85.48,85.45,0.51901201]
[1771362958096,7.04977231,85.47,85.45,0.51901201]
[1771362958291,7.04977231,85.47,85.443,0.51901201]
[1771362958889,7.04977231,85.47,85.441,11.70398286]
[1771362958890,7.04977231,85.46,85.434,0.51901201]
[1771362959093,7.04977231,85.46,85.433,16.78]
[1771362959307,11.70151768,85.459,85.433,0.51901201]
[1771362959907,7.04977231,85.45,85.421,0.51901201]
[1771362960089,7.04977231,85.44,85.416,17.31901201]
[1771362960290,7.04977231,85.44,85.417,0.51901201]
[1771362960612,7.04977231,85.44,85.409,0.51901201]
[1771362960789,7.04977231,85.43,85.409,0.51901201]
[1771362961510,7.04977231,85.45,85.411,0.51901201]
[1771362962084,7.04977231,85.44,85.411,0.51901201]
[1771362962509,7.04977231,85.45,85.411,0.51901201]
[1771362964412,7.04977231,85.45,85.413,0.51901201]
[1771362964792,11.7028871,85.449,85.413,0.51901201]
[1771362966202,7.04977231,85.44,85.413,0.51901201]
[1771362967614,11.70425683,85.439,85.413,0.51901201]
[1771362968307,7.04977231,85.43,85.413,0.51901201]
[1771362968517,18.12,85.468,85.415,0.51901201]
[1771362968518,7.04977231,85.44,85.415,0.51901201]
[1771362968814,18.75395395,85.44,85.415,0.51901201]
[1771362970099,7.04977231,85.44,85.417,0.51901201]
[1771362970611,11.70165461,85.458,85.417,0.51901201]
[1771362970807,11.70165461,85.458,85.421,0.51901201]
[1771362970999,7.04977231,85.45,85.423,0.51901201]
[1771362971199,11.70165461,85.458,85.423,0.51901201]
[1771362971407,7.04977231,85.45,85.423,0.51901201]
[1771362972120,11.70165461,85.458,85.423,0.51901201]
[1771362973110,11.70165461,85.458,85.425,0.51901201]
[1771362973811,7.04977231,85.45,85.425,0.51901201]
[1771362974722,11.70165461,85.458,85.425,0.51901201]
[1771362974912,7.04977231,85.45,85.425,0.51901201]
[1771362975303,11.7028871,85.449,85.418,0.51901201]
[1771362975722,11.7028871,85.449,85.418,12.22614633]
[1771362976023,11.7028871,85.449,85.419,0.51901201]
[1771362976425,2.37174576,85.45,85.421,0.51901201]
[1771362977808,2.37174576,85.45,85.423,0.51901201]
[1771362978517,14.07454858,85.45,85.423,0.51901201]
[1771362978900,2.37174576,85.46,85.431,0.51901201]
[1771362979108,11.70068561,85.466,85.441,0.51901201]
[1771362980425,2.37062383,85.47,85.441,0.51901201]
[1771362980607,2.37062383,85.47,85.423,1.3]
[1771362980608,2.37062383,85.49,85.451,0.51901201]
[1771362981901,40.94093976,85.489,85.451,0.51901201]
[1771362983717,40.94093976,85.489,85.452,11.70247624]
[1771362983926,40.94093976,85.489,85.453,0.51901201]
[1771362984119,40.94093976,85.489,85.455,0.51901201]
[1771362986803,40.94093976,85.489,85.442,16.9]
[1771362986804,2.37062383,85.48,85.443,0.51901201]
[1771362987004,2.37062383,85.48,85.444,0.51901201]
[1771362987212,2.37062383,85.47,85.444,0.51901201]
[1771362987424,40.94093976,85.489,85.446,0.51901201]
[1771362987425,2.37062383,85.48,85.446,0.51901201]
[1771362989321,40.94572935,85.479,85.446,0.51901201]
[1771362989535,2.37062383,85.47,85.445,1.3]
[1771362990223,2.37062383,85.47,85.445,1.81901201]
[1771362990425,2.37062383,85.47,85.446,0.51901201]
[1771362991331,11.70014859,85.469,85.446,0.51901201]
[1771362999643,2.37062383,85.46,85.425,1.3]
[1771362999834,40.95052006,85.469,85.412,29.26979773]
[1771362999835,2.37062383,85.45,85.426,0.51901201]
[1771363002028,11.7028871,85.449,85.426,0.51901201]
[1771363004718,11.7028871,85.449,85.41,2.37062383]
[1771363004719,0.50015463,85.439,85.408,16.92]
[1771363004914,2.87077846,85.43,85.4,16.94]
[1771363005234,2.87077846,85.43,85.385,29.27900512]
[1771363005235,0.50015463,85.419,85.389,11.71110063]
[1771363005814,2.37062383,85.41,85.388,16.94]
[1771363006019,2.37062383,85.41,85.384,11.71169051]
[1771363006717,14.07886783,85.41,85.381,0.51194297]
[1771363006935,2.37062383,85.41,85.381,0.51194297]
[1771363008129,11.70836797,85.409,85.381,0.51194297]
[1771363008834,11.70836797,85.409,85.383,0.51194297]
[1771363009222,2.37062383,85.42,85.391,0.51194297]
[1771363009541,11.70699727,85.419,85.391,0.51194297]
[1771363009740,0.50015463,85.418,85.391,0.51194297]
[1771363012139,11.70727138,85.417,85.391,0.51194297]
[1771363013839,11.70727138,85.417,85.393,0.5026353]
[1771363014940,11.70727138,85.417,85.383,1.3]
[1771363014941,0.4807561,85.444,85.4,2.37062383]
[1771363015252,0.4807561,85.444,85.401,0.5026353]
[1771363015548,0.4807561,85.444,85.411,0.5026353]
[1771363016443,0.4807561,85.444,85.406,16.98]
[1771363016444,2.37062383,85.42,85.406,16.98]
[1771363016646,2.37062383,85.42,85.398,0.5026353]
[1771363016841,0.4807561,85.417,85.387,0.5026353]
[1771363017345,11.70713432,85.418,85.387,0.5026353]
[1771363018928,11.70713432,85.418,85.389,0.5026353]
[1771363020343,12.18789042,85.418,85.389,0.5026353]
[1771363020947,0.4807561,85.417,85.389,0.5026353]
[1771363021247,0.4807561,85.417,85.387,11.7113488]
[1771363021248,2.37062383,85.4,85.382,0.5026353]
[1771363021951,2.37062383,85.4,85.373,17.0]
[1771363021952,0.4807561,85.399,85.374,0.5026353]
[1771363022153,0.4807561,85.399,85.373,17.0]
[1771363022154,2.37062383,85.39,85.373,17.0]
[1771363022325,0.4807561,85.389,85.367,0.5026353]
[1771363022832,2.37062383,85.38,85.353,0.5026353]
[1771363023039,0.4807561,85.379,85.353,0.5026353]
[1771363023347,2.37062383,85.39,85.361,0.5026353]
[1771363023536,11.71077755,85.392,85.361,0.5026353]
[1771363024136,12.19066345,85.398,85.361,0.5026353]
[1771363024335,11.70836797,85.409,85.371,0.5026353]
[1771363024538,11.70836797,85.409,85.38,2.37062383]
[1771363024851,11.70836797,85.409,85.381,0.5026353]
[1771363025545,11.70836797,85.409,85.383,0.5026353]
[1771363025743,2.37062383,85.42,85.383,0.5026353]
[1771363026251,0.4807561,85.419,85.383,0.5026353]
[1771363026441,2.37062383,85.41,85.383,0.5026353]
[1771363027649,2.37062383,85.41,85.385,0.5026353]
[1771363027858,11.70836797,85.409,85.385,0.5026353]
[1771363031441,0.4807561,85.399,85.37,0.5026353]
[1771363031753,11.70836797,85.409,85.373,0.5026353]
[1771363032053,11.70836797,85.409,85.381,0.5026353]
[1771363034760,0.47081741,85.389,85.356,0.46564506]
[1771363035356,2.37062383,85.4,85.371,0.46564506]
[1771363036768,11.70973898,85.399,85.371,0.46564506]
[1771363036938,2.37062383,85.39,85.363,0.46564506]
[1771363037142,0.47081741,85.389,85.363,0.46564506]
[1771363037582,2.37062383,85.38,85.354,0.46564506]
[1771363037744,2.37062383,85.37,85.345,0.46564506]
[1771363038272,0.47081741,85.369,85.345,0.46564506]
[1771363039347,2.37062383,85.36,85.345,0.46564506]
[1771363040162,11.71399119,85.368,85.345,0.46564506]
[1771363040848,12.1848086,85.368,85.345,0.46564506]
[1771363041872,0.47081741,85.367,85.345,0.46564506]
[1771363042070,2.37612889,85.36,85.345,0.46564506]
[1771363042542,2.37612889,85.38,85.351,0.46564506]
[1771363042745,2.37612889,85.39,85.351,0.46564506]
[1771363043165,2.8469463,85.39,85.351,0.46564506]
[1771363043365,2.37612889,85.38,85.351,0.46564506]
[1771363045046,11.71248199,85.379,85.353,0.46564506]
[1771363045653,2.37612889,85.37,85.353,0.46564506]
[1771363047250,2.37612889,85.36,85.34,0.2]
[1771363048962,0.47081741,85.359,85.34,0.2]
[1771363049475,2.37612889,85.36,85.34,0.2]
[1771363049876,2.37612889,85.36,85.34,11.91774687]
[1771363056180,2.37612889,85.37,85.341,0.46564506]
[1771363056361,14.56066306,85.37,85.341,0.46564506]
[1771363056558,0.47081741,85.369,85.341,0.46564506]
[1771363058165,12.1848086,85.368,85.342,0.46564506]
[1771363061369,11.71336111,85.373,85.344,0.46564506]
[1771363066686,11.71336111,85.373,85.346,0.46135788]
[1771363067397,0.49439633,85.369,85.346,0.46135788]
[1771363067975,0.49439633,85.369,85.34,0.2]
[1771363068388,0.49439633,85.351,85.34,0.2]
[1771363068898,0.49439633,85.358,85.34,0.2]
[1771363069699,11.71447987,85.365,85.341,0.46135788]
[1771363070902,0.49439633,85.365,85.341,0.46135788]
[1771363071195,11.71385397,85.369,85.343,0.46135788]
[1771363071411,11.71330236,85.374,85.343,0.46135788]
[1771363074901,0.46546011,85.377,85.345,0.48992471]
[1771363075130,11.71213311,85.382,85.351,0.48992471]
[1771363075397,12.17759322,85.382,85.351,0.48992471]
[1771363075776,2.37612889,85.38,85.351,0.48992471]
[1771363077201,11.71248199,85.379,85.352,11.71618708]
[1771363077392,11.71248199,85.379,85.353,0.48992471]
[1771363080603,11.71248199,85.379,85.355,0.48992471]
[1771363080905,2.841589,85.38,85.355,0.48992471]
[1771363081421,2.37612889,85.38,85.355,0.48992471]
[1771363081921,2.37612889,85.38,85.357,0.48992471]
[1771363082217,0.46546011,85.408,85.37,2.37612889]
[1771363082417,0.50788644,85.455,85.37,2.37612889]
[1771363082635,175.73795956,85.579,85.401,0.50788644]
[1771363082636,2.37612889,85.43,85.401,0.50788644]
[1771363082801,2.37612889,85.44,85.41,2.37612889]
[1771363083131,2.37612889,85.44,85.411,0.50788644]
[1771363083306,2.37612889,85.44,85.413,0.50788644]
[1771363085104,2.37612889,85.44,85.415,0.50788644]
[1771363086329,6.99342141,85.47,85.421,0.50788644]
[1771363086330,2.37612889,85.45,85.421,0.50788644]
[1771363086620,2.37612889,85.43,85.398,0.50788644]
[1771363086827,2.37612889,85.43,85.4,0.50788644]
[1771363087811,2.37612889,85.44,85.401,0.50788644]
[1771363088025,2.37612889,85.45,85.411,0.50788644]
[1771363089730,11.7028871,85.449,85.412,0.50788644]
[1771363091131,2.37612889,85.44,85.412,0.50788644]
[1771363091330,0.02575555,85.439,85.412,0.50788644]
[1771363091512,0.02575555,85.439,85.413,17.08]
[1771363091715,0.02575555,85.438,85.413,15.43245141]
[1771363091914,2.40188444,85.43,85.413,15.43245141]
[1771363094634,0.02575555,85.43,85.413,15.43245141]
[1771363095139,0.051212,85.429,85.39,2.89278052]
[1771363095322,0.051212,85.419,85.391,0.51665163]
[1771363096836,0.051212,85.419,85.393,0.51665163]
[1771363097241,0.06350583,85.428,85.393,0.51665163]
[1771363102523,0.09872808,85.409,85.382,0.51665163]
[1771363103645,0.09872808,85.409,85.383,0.51665163]
[1771363106846,0.09872808,85.409,85.384,11.71179612]
[1771363107052,0.09872808,85.409,85.385,0.51665163]
[1771363107729,2.37277493,85.4,85.38,17.04]
[1771363107946,0.12627132,85.399,85.38,17.04]
[1771363108150,0.12627132,85.399,85.372,0.51665163]
[1771363108151,2.37277493,85.39,85.366,0.51665163]
[1771363108657,0.13159161,85.389,85.366,0.51665163]
[1771363109060,11.84270194,85.389,85.366,0.51665163]
[1771363109265,11.71111033,85.389,85.366,0.51665163]
[1771363109443,0.13159161,85.388,85.366,0.51665163]
[1771363111859,0.14718863,85.395,85.366,0.51665163]
[1771363112166,11.71057286,85.393,85.368,0.51665163]
[1771363114766,2.53502929,85.42,85.381,0.51665163]
[1771363114966,29.26641608,85.423,85.391,0.51665163]
[1771363117064,29.43842806,85.423,85.391,0.51665163]
[1771363117553,2.37277493,85.42,85.391,0.51665163]
[1771363117768,0.1768069,85.409,85.382,17.04]
[1771363118272,2.37277493,85.4,85.382,17.55665163]
[1771363118648,2.37277493,85.39,85.369,0.51665163]
[1771363119581,11.71111033,85.389,85.369,0.51665163]
[1771363119754,2.37277493,85.41,85.367,17.02]
[1771363119755,2.37277493,85.43,85.381,0.51665163]
[1771363119948,2.37277493,85.43,85.391,0.51665163]
[1771363120186,0.18623214,85.419,85.391,0.51665163]
[1771363120472,0.18623214,85.419,85.39,17.53665163]
[1771363120656,0.18623214,85.419,85.391,0.51665163]
[1771363121668,0.1954421,85.417,85.391,0.51665163]
[1771363122982,0.1999679,85.461,85.401,0.51665163]
[1771363123153,2.37277493,85.45,85.421,0.51665163]
[1771363123351,2.57721664,85.46,85.421,0.51665163]
[1771363123567,2.57721664,85.46,85.423,0.51665163]
[1771363123980,43.5320493,85.46,85.423,0.51665163]
[1771363124471,2.37277493,85.46,85.431,0.59564896]
[1771363124773,11.70151768,85.459,85.431,0.59564896]
[1771363125675,2.37277493,85.45,85.431,0.59564896]
[1771363125867,0.21755719,85.458,85.431,0.59564896]
[1771363126265,2.37277493,85.45,85.431,0.59564896]
[1771363126593,0.22182898,85.439,85.369,0.59564896]
[1771363126881,2.37277493,85.41,85.381,0.59564896]
[1771363127062,0.22182898,85.458,85.381,0.59564896]
[1771363127253,0.22182898,85.429,85.401,0.59564896]
[1771363127452,2.37277493,85.42,85.391,17.59564896]
[1771363127654,14.07976592,85.42,85.393,0.59564896]
[1771363129073,2.37277493,85.41,85.391,17.0]
[1771363130564,14.08105433,85.41,85.391,17.0]
[1771363131078,14.08105433,85.41,85.385,0.59564896]
[1771363131462,20.29277493,85.44,85.391,0.59564896]
[1771363131463,0.24246309,85.43,85.391,0.59564896]
[1771363131776,2.37277493,85.42,85.392,0.59564896]
[1771363136484,14.0797665,85.42,85.393,11.71056175]
[1771363136658,14.0797665,85.42,85.394,0.59074662]
[1771363142702,11.70713432,85.418,85.391,14.07518892]
[1771363142894,0.61982688,85.399,85.382,1.3]
[1771363143186,0.61982688,85.389,85.362,11.71474737]
[1771363143387,2.37277493,85.41,85.37,2.37277493]
[1771363144684,0.61982688,85.409,85.371,0.59074662]
[1771363144889,11.70850505,85.408,85.373,0.59074662]
[1771363146393,11.70850505,85.408,85.37,2.37277493]
[1771363146394,11.70850505,85.408,85.375,0.59074662]
[1771363146574,0.61982688,85.407,85.375,0.59074662]
[1771363146975,0.61982688,85.399,85.375,0.59074662]
[1771363148088,0.61982688,85.389,85.343,0.59074662]
[1771363148289,2.37277493,85.35,85.321,12.31119059]
[1771363148486,2.37277493,85.35,85.322,0.59074662]
[1771363149004,2.37277493,85.35,85.31,0.59074662]
[1771363149005,2.37277493,85.33,85.31,0.59074662]
[1771363149404,2.37277493,85.33,85.311,11.72172899]
[1771363149699,0.61982688,85.339,85.317,11.72092064]
[1771363149876,2.37277493,85.33,85.31,0.59074662]
[1771363150272,2.37277493,85.33,85.3,0.2]
[1771363150273,0.61982688,85.327,85.3,0.2]
[1771363150473,2.37277493,85.31,85.3,0.2]
[1771363150890,2.37277493,85.32,85.3,0.2]
[1771363151596,2.37277493,85.33,85.303,0.59074662]
[1771363151770,0.61982688,85.329,85.303,0.59074662]
[1771363152875,2.37277493,85.32,85.303,0.59074662]
[1771363153080,2.37277493,85.32,85.3,0.2]
[1771363153401,0.61982688,85.319,85.3,0.2]
[1771363153694,0.61982688,85.319,85.29,0.2]
[1771363153888,0.61982688,85.319,85.271,0.59074662]
[1771363154119,2.37277493,85.3,85.272,0.59074662]
[1771363154312,2.37277493,85.3,85.274,0.59074662]
[1771363154512,11.72346686,85.299,85.274,0.59074662]
[1771363155010,2.37277493,85.3,85.274,0.59074662]
[1771363155314,2.37277493,85.3,85.27,0.2]
[1771363155315,0.65859766,85.298,85.27,0.2]
[1771363155524,2.37277493,85.29,85.27,0.2]
[1771363156409,0.65859766,85.31,85.271,0.6238445]
[1771363156613,2.37277493,85.31,85.272,0.6238445]
[1771363160205,11.72209262,85.309,85.274,0.6238445]
[1771363160516,0.65859766,85.279,85.26,1e-08]
[1771363160697,0.65859766,85.279,85.245,0.6238445]
[1771363160698,2.37277493,85.27,85.245,0.6238445]
[1771363160897,2.37277493,85.26,85.245,0.6238445]
[1771363161517,2.37277493,85.29,85.23,2.37277493]
[1771363161518,2.37277493,85.29,85.252,0.6238445]
[1771363162389,0.65859766,85.305,85.254,0.6238445]
[1771363162606,0.65859766,85.305,85.253,11.72979249]
[1771363162607,2.37277493,85.3,85.271,0.6238445]
[1771363163206,2.37277493,85.29,85.262,0.6238445]
[1771363163918,7.08260033,85.3,85.271,0.6238445]
[1771363164217,29.30470162,85.311,85.271,0.6238445]
[1771363164218,7.08260033,85.31,85.271,0.6238445]
[1771363164415,11.72209262,85.309,85.273,0.6238445]
[1771363165403,7.08260033,85.3,85.273,0.6238445]
[1771363166827,18.80597989,85.3,85.273,0.6238445]
[1771363167127,7.08260033,85.3,85.281,0.6238445]
[1771363169123,11.72126824,85.315,85.283,0.6238445]
[1771363169333,7.08260033,85.31,85.283,0.6238445]
[1771363169627,11.72126824,85.315,85.283,0.6238445]
[1771363169833,7.08260033,85.31,85.283,0.6238445]
[1771363171111,7.08260033,85.32,85.285,0.6238445]
[1771363171310,7.08260033,85.32,85.286,0.6238445]
[1771363171708,18.80318167,85.32,85.286,0.6238445]
[1771363171910,7.08260033,85.31,85.286,0.6238445]
[1771363173412,7.08260033,85.32,85.291,0.6238445]
[1771363173736,11.72010133,85.324,85.293,0.6238445]
[1771363173943,18.80183402,85.33,85.301,0.6238445]
[1771363174232,7.08260033,85.32,85.301,0.6238445]
[1771363176223,11.72071871,85.319,85.301,0.6238445]
[1771363180534,11.72071871,85.319,85.294,0.6238445]
[1771363181712,7.08260033,85.32,85.294,0.6238445]
[1771363181917,11.7197729,85.326,85.294,0.6238445]
[1771363182436,7.08260033,85.32,85.294,0.6238445]
[1771363182629,11.72071871,85.319,85.294,0.6238445]
[1771363183415,0.65859766,85.318,85.289,17.02]
[1771363183718,0.65859766,85.309,85.285,0.3]
[1771363183919,2.37960577,85.3,85.28,17.6438445]
[1771363184220,2.37960577,85.3,85.281,11.72594129]
[1771363184422,2.37960577,85.3,85.281,0.65299591]
[1771363185029,2.37960577,85.3,85.282,11.7258038]
[1771363185923,2.37960577,85.31,85.283,0.65299591]
[1771363186924,11.72178873,85.312,85.285,0.65299591]
[1771363187325,2.37960577,85.31,85.285,0.65299591]
[1771363188340,11.72209262,85.309,85.285,0.65299591]
[1771363192941,2.37960577,85.33,85.291,0.70260133]
[1771363193142,2.37960577,85.33,85.293,0.70260133]
[1771363193343,11.71934512,85.329,85.293,0.70260133]
[1771363193645,2.37960577,85.33,85.295,0.70260133]
[1771363193844,14.09885586,85.33,85.301,0.70260133]
[1771363194428,14.09885586,85.33,85.303,0.70260133]
[1771363195031,14.09885586,85.33,85.305,0.70260133]
[1771363197040,14.09885586,85.33,85.307,0.70260133]
[1771363197430,2.37960577,85.33,85.307,0.70260133]
[1771363198224,11.7187855,85.334,85.307,0.70260133]
[1771363198628,11.7187855,85.334,85.308,0.70260133]
[1771363199646,2.37960577,85.33,85.309,0.70260133]
[1771363200750,11.7187855,85.334,85.31,0.70260133]
[1771363202454,2.37960577,85.33,85.31,0.70260133]
[1771363202847,11.7187855,85.334,85.31,0.70260133]
[1771363203042,0.67673993,85.353,85.321,0.70260133]
[1771363203247,0.67673993,85.359,85.323,0.70260133]
[1771363203431,0.67673993,85.349,85.323,0.70260133]
[1771363203627,0.67673993,85.349,85.322,17.06]
[1771363204254,0.67673993,85.347,85.318,12.42345742]
[1771363204432,0.67673993,85.347,85.318,29.46345742]
[1771363204632,0.67673993,85.347,85.319,0.70260133]
[1771363204849,0.67673993,85.347,85.321,0.70260133]
[1771363205456,0.67673993,85.347,85.322,17.06]
[1771363205749,0.67673993,85.347,85.322,17.76260133]
[1771363206453,0.67673993,85.347,85.323,12.42277056]
[1771363206834,0.67673993,85.345,85.318,17.06]
[1771363207257,0.67673993,85.345,85.317,11.72092017]
[1771363207456,0.67673993,85.345,85.317,28.78092017]
[1771363208539,0.67673993,85.345,85.32,0.70260133]
[1771363208733,14.09617622,85.35,85.32,0.70260133]
[1771363208941,14.77291615,85.35,85.32,0.70260133]
[1771363209444,0.67673993,85.349,85.322,11.7203066]
[1771363209647,0.67673993,85.349,85.323,0.70260133]
[1771363210538,11.71673618,85.348,85.323,0.70260133]
[1771363210940,12.39347611,85.348,85.325,0.70260133]
[1771363211131,0.67673993,85.348,85.325,0.70260133]
[1771363211831,11.71591255,85.354,85.325,0.70260133]
[1771363212051,0.67673993,85.353,85.325,0.70260133]
[1771363212255,0.67673993,85.349,85.325,0.70260133]
[1771363212663,0.67673993,85.34,85.32,17.06]
[1771363212849,0.67673993,85.329,85.3,0.70260133]
[1771363213555,0.67673993,85.329,85.301,11.72319199]
[1771363214556,0.6676625,85.327,85.301,11.72319199]
[1771363215658,0.6676625,85.327,85.3,0.70260133]
[1771363215833,3.04726827,85.32,85.3,0.70260133]
[1771363216034,0.6676625,85.319,85.3,0.70260133]
[1771363216237,0.6676625,85.319,85.293,0.68806696]
[1771363216662,12.38851859,85.318,85.293,0.68806696]
[1771363220475,0.6676625,85.325,85.295,0.68806696]
[1771363221853,3.04726827,85.35,85.311,0.68806696]
[1771363222256,0.6676625,85.349,85.311,0.68806696]
[1771363222459,0.6676625,85.349,85.313,0.68806696]
[1771363223370,11.71673618,85.348,85.321,0.68806696]
[1771363225474,17.7,85.376,85.32,2.37655284]
[1771363225475,0.6676625,85.369,85.331,0.68806696]
[1771363225675,0.6676625,85.369,85.341,0.68806696]
[1771363225676,12.38151647,85.369,85.341,0.68806696]
[1771363226857,11.71385397,85.369,85.343,0.68806696]
[1771363228079,0.6676625,85.369,85.343,0.68806696]
[1771363230083,0.6676625,85.367,85.343,0.68806696]
[1771363231564,11.71399119,85.368,85.344,0.68806696]
[1771363231765,0.6676625,85.367,85.344,0.68806696]
[1771363236668,0.6676625,85.367,85.346,0.68806696]
[1771363240689,12.38192813,85.366,85.346,0.68806696]
[1771363240897,0.6676625,85.365,85.346,0.68806696]
[1771363241201,0.6676625,85.369,85.346,0.68806696]
[1771363243294,11.71399119,85.368,85.346,0.68806696]
[1771363243599,0.6676625,85.359,85.333,0.68806696]
[1771363245681,0.74545362,85.349,85.328,17.12]
[1771363246390,0.74545362,85.349,85.32,0.69090516]
[1771363252388,0.74545362,85.347,85.322,0.69090516]
[1771363253502,0.7649106,85.339,85.311,0.72630046]
[1771363253685,0.7649106,85.329,85.305,0.72630046]
[1771363254503,0.7649106,85.327,85.305,0.72630046]
[1771363254885,0.7649106,85.327,85.299,0.72630046]
[1771363255089,11.71948246,85.328,85.299,0.72630046]
[1771363255090,2.37655284,85.32,85.299,0.72630046]
[1771363255989,11.71893691,85.332,85.301,0.72630046]